[Event "*** Titled Tuesday Blitz"]
[Site "Chess.com"]
[Date "2018.10.02"]
[Round "10"]
[White "BillForster"]
[Black "017290"]
[Result "0-1"]
[WhiteElo "1689"]
[BlackElo "2241"]
[TimeControl "180+2"]
[EndTime "15:12:09 PDT"]
[Termination "017290 won on time"]

1. d4 {[%clk 0:03:01.9]} 1... Nf6 {[%clk 0:02:46.6]} 2. c4 {[%clk 0:03:02.1]}
2... e6 {[%clk 0:02:31]} 3. Nc3 {[%clk 0:03:01.9]} 3... Bb4 {[%clk 0:02:31.2]}
4. e3 {[%clk 0:03:02.6]} 4... b6 {[%clk 0:02:22]} 5. Bd3 {[%clk 0:02:48.5]} 5...
Bb7 {[%clk 0:02:20.1]} 6. f3 {[%clk 0:02:48.1]} 6... c5 {[%clk 0:02:19.4]} 7.
Ne2 {[%clk 0:02:46.6]} 7... d5 {[%clk 0:02:19.5]} 8. O-O {[%clk 0:02:40.9]} 8...
O-O {[%clk 0:02:18.9]} 9. a3 {[%clk 0:02:39.9]} 9... Ba5 {[%clk 0:02:14.7]} 10.
b3 {[%clk 0:02:19]} 10... a6 {[%clk 0:02:12.2]} 11. Bb2 {[%clk 0:02:19]} 11...
Nc6 {[%clk 0:02:08.6]} 12. Qc2 {[%clk 0:01:57.9]} 12... Rc8 {[%clk 0:01:57.9]}
13. Rac1 {[%clk 0:01:50.9]} 13... h6 {[%clk 0:01:48.3]} 14. Qb1 {[%clk
0:01:48.6]} 14... dxc4 {[%clk 0:01:44.3]} 15. bxc4 {[%clk 0:01:07.9]} 15... cxd4
{[%clk 0:01:39.4]} 16. exd4 {[%clk 0:01:00.4]} 16... Nxd4 {[%clk 0:01:41.3]} 17.
Rfd1 {[%clk 0:00:53.6]} 17... Nxe2+ {[%clk 0:01:36.4]} 18. Nxe2 {[%clk
0:00:48.5]} 18... Qe7 {[%clk 0:01:36.9]} 19. Nf4 {[%clk 0:00:41.9]} 19... Rfd8
{[%clk 0:01:33.1]} 20. Bf1 {[%clk 0:00:15]} 20... Bd2 {[%clk 0:01:23.5]} 21. Nd5
{[%clk 0:00:07.7]} 21... Rxd5 {[%clk 0:01:16]} 22. cxd5 {[%clk 0:00:06.2]} 22...
Bxc1 {[%clk 0:00:48]} 23. d6 {[%clk 0:00:06]} 23... Qd7 {[%clk 0:00:45.3]} 24.
Rxc1 {[%clk 0:00:05.2]} 24... Qxd6 {[%clk 0:00:42.6]} 25. Rd1 {[%clk 0:00:05.5]}
25... Qc5+ {[%clk 0:00:40.9]} 26. Kh1 {[%clk 0:00:06.3]} 26... Nd5 {[%clk
0:00:32.4]} 27. Qa1 {[%clk 0:00:05.5]} 27... f6 {[%clk 0:00:25.3]} 28. Be2
{[%clk 0:00:04]} 28... Qc2 {[%clk 0:00:25.7]} 0-1

[Event "*** Titled Tuesday Blitz"]
[Site "Chess.com"]
[Date "2018.10.02"]
[Round "10"]
[White "ChessicallyInclined"]
[Black "nearestway"]
[Result "0-1"]
[WhiteElo "2412"]
[BlackElo "2536"]
[TimeControl "180+2"]
[EndTime "15:12:12 PDT"]
[Termination "nearestway won by resignation"]

1. e4 {[%clk 0:03:01.9]} 1... c5 {[%clk 0:03:00.8]} 2. Nf3 {[%clk 0:03:02.8]}
2... d6 {[%clk 0:03:02.1]} 3. d4 {[%clk 0:03:03.2]} 3... cxd4 {[%clk 0:03:04]}
4. Nxd4 {[%clk 0:03:05]} 4... Nf6 {[%clk 0:03:05.5]} 5. Nc3 {[%clk 0:03:06.5]}
5... a6 {[%clk 0:03:07.1]} 6. Bc4 {[%clk 0:03:07.7]} 6... e6 {[%clk 0:03:08.2]}
7. Bb3 {[%clk 0:03:05.2]} 7... b5 {[%clk 0:03:09.6]} 8. f4 {[%clk 0:03:05.3]}
8... Be7 {[%clk 0:03:06.6]} 9. f5 {[%clk 0:03:03.4]} 9... e5 {[%clk 0:03:04.9]}
10. Nde2 {[%clk 0:03:04.8]} 10... Bb7 {[%clk 0:03:05.5]} 11. Ng3 {[%clk
0:03:00.6]} 11... Nbd7 {[%clk 0:03:06.4]} 12. Bg5 {[%clk 0:03:00.7]} 12... Rc8
{[%clk 0:03:06.9]} 13. O-O {[%clk 0:02:58.6]} 13... O-O {[%clk 0:03:03.9]} 14.
Bxf6 {[%clk 0:02:50.5]} 14... Nxf6 {[%clk 0:03:03.2]} 15. Nd5 {[%clk 0:02:51.5]}
15... Bxd5 {[%clk 0:02:55.5]} 16. Bxd5 {[%clk 0:02:50.2]} 16... Nxd5 {[%clk
0:02:55.7]} 17. exd5 {[%clk 0:02:52.1]} 17... Bg5 {[%clk 0:02:48.3]} 18. Ne4
{[%clk 0:02:49.3]} 18... Be3+ {[%clk 0:02:49]} 19. Kh1 {[%clk 0:02:50.3]} 19...
f6 {[%clk 0:02:50.6]} 20. Qd3 {[%clk 0:02:47.1]} 20... Bb6 {[%clk 0:02:39.8]}
21. c3 {[%clk 0:02:43.2]} 21... Rf7 {[%clk 0:02:36.1]} 22. a4 {[%clk 0:02:42]}
22... Qd7 {[%clk 0:01:58.4]} 23. axb5 {[%clk 0:02:41.8]} 23... axb5 {[%clk
0:01:59.1]} 24. Ra6 {[%clk 0:02:42.8]} 24... Rb8 {[%clk 0:01:58.7]} 25. Rfa1
{[%clk 0:02:42]} 25... Qxf5 {[%clk 0:01:42.6]} 26. Qxb5 {[%clk 0:01:54.4]} 26...
Qxe4 {[%clk 0:01:37.2]} 27. Rxb6 {[%clk 0:01:54.8]} 27... Rxb6 {[%clk
0:01:27.5]} 28. Qxb6 {[%clk 0:01:43.9]} 28... Qxd5 {[%clk 0:01:20.3]} 29. b4
{[%clk 0:01:42.4]} 29... h6 {[%clk 0:01:15.3]} 30. h3 {[%clk 0:01:30.6]} 30...
f5 {[%clk 0:01:16]} 31. b5 {[%clk 0:01:21.2]} 31... f4 {[%clk 0:01:15.5]} 32.
Qd8+ {[%clk 0:01:17.8]} 32... Rf8 {[%clk 0:01:13.8]} 33. Qd7 {[%clk 0:01:16.5]}
33... f3 {[%clk 0:01:08.7]} 34. b6 {[%clk 0:00:45.5]} 34... fxg2+ {[%clk
0:00:55.2]} 35. Kh2 {[%clk 0:00:46.4]} 35... Rf1 {[%clk 0:00:40.3]} 36. Qc8+
{[%clk 0:00:11.5]} 36... Kh7 {[%clk 0:00:39.5]} 0-1

[Event "*** Titled Tuesday Blitz"]
[Site "Chess.com"]
[Date "2018.10.02"]
[Round "10"]
[White "cool4chess"]
[Black "Morshynska"]
[Result "1-0"]
[WhiteElo "2191"]
[BlackElo "2092"]
[TimeControl "180+2"]
[EndTime "15:12:23 PDT"]
[Termination "cool4chess won by resignation"]

1. e4 {[%clk 0:03:01.9]} 1... e5 {[%clk 0:03:00]} 2. Nf3 {[%clk 0:03:02.9]} 2...
Nc6 {[%clk 0:03:00.1]} 3. Bb5 {[%clk 0:03:04]} 3... a6 {[%clk 0:03:00.1]} 4. Ba4
{[%clk 0:03:05.3]} 4... Nf6 {[%clk 0:03:00.5]} 5. O-O {[%clk 0:03:06.5]} 5... b5
{[%clk 0:03:01.2]} 6. Bb3 {[%clk 0:03:06.8]} 6... Bb7 {[%clk 0:03:02]} 7. c3
{[%clk 0:03:04.4]} 7... Nxe4 {[%clk 0:03:01.9]} 8. d4 {[%clk 0:03:05.5]} 8...
Na5 {[%clk 0:03:00.5]} 9. Nxe5 {[%clk 0:02:54]} 9... Nxb3 {[%clk 0:02:57.7]} 10.
Qxb3 {[%clk 0:02:52.5]} 10... Nd6 {[%clk 0:02:42]} 11. Re1 {[%clk 0:02:37.2]}
11... Be7 {[%clk 0:02:34.9]} 12. Bg5 {[%clk 0:02:16.2]} 12... O-O {[%clk
0:02:09.9]} 13. Nc6 {[%clk 0:01:31]} 13... Bxc6 {[%clk 0:02:02.8]} 14. Rxe7
{[%clk 0:01:29.6]} 14... Kh8 {[%clk 0:01:37.2]} 15. Re5 {[%clk 0:00:43.4]} 15...
f6 {[%clk 0:01:30.9]} 16. Bh4 {[%clk 0:00:44.5]} 16... Re8 {[%clk 0:01:06.6]}
17. Nd2 {[%clk 0:00:40.4]} 17... Rxe5 {[%clk 0:00:56.1]} 18. dxe5 {[%clk
0:00:40.5]} 18... Nf5 {[%clk 0:00:56.9]} 19. Bg3 {[%clk 0:00:22.4]} 19... Nxg3
{[%clk 0:00:56.9]} 20. hxg3 {[%clk 0:00:24.3]} 20... fxe5 {[%clk 0:00:57.6]} 21.
Re1 {[%clk 0:00:24.5]} 21... Qf6 {[%clk 0:00:55.4]} 22. Nf1 {[%clk 0:00:21.8]}
22... Rf8 {[%clk 0:00:51]} 23. Qc2 {[%clk 0:00:22.9]} 23... d6 {[%clk
0:00:44.3]} 24. Ne3 {[%clk 0:00:22.8]} 24... Qg5 {[%clk 0:00:39.9]} 25. c4
{[%clk 0:00:22.9]} 25... b4 {[%clk 0:00:36.6]} 26. Qd2 {[%clk 0:00:21.7]} 26...
a5 {[%clk 0:00:31.7]} 27. a3 {[%clk 0:00:22.2]} 27... Rb8 {[%clk 0:00:28]} 28.
axb4 {[%clk 0:00:21.8]} 28... axb4 {[%clk 0:00:23.6]} 29. Ra1 {[%clk 0:00:22.8]}
29... h6 {[%clk 0:00:20.3]} 30. Ra7 {[%clk 0:00:22.1]} 30... Qd8 {[%clk
0:00:19]} 31. b3 {[%clk 0:00:21.4]} 31... Rb6 {[%clk 0:00:16.8]} 32. Qa2 {[%clk
0:00:22]} 32... Kh7 {[%clk 0:00:16.5]} 33. Nd5 {[%clk 0:00:21.2]} 33... Bxd5
{[%clk 0:00:16.7]} 34. cxd5 {[%clk 0:00:23.1]} 34... Qd7 {[%clk 0:00:17.2]} 35.
Qc2+ {[%clk 0:00:20.4]} 35... g6 {[%clk 0:00:18]} 36. Rxc7 {[%clk 0:00:21]}
36... Qxc7 {[%clk 0:00:17.5]} 37. Qxc7+ {[%clk 0:00:22.9]} 37... Kg8 {[%clk
0:00:18.6]} 38. Qxb6 {[%clk 0:00:23.7]} 1-0

[Event "*** Titled Tuesday Blitz"]
[Site "Chess.com"]
[Date "2018.10.02"]
[Round "10"]
[White "luizzy"]
[Black "PowerThinking2650"]
[Result "1-0"]
[WhiteElo "2406"]
[BlackElo "2321"]
[TimeControl "180+2"]
[EndTime "15:12:27 PDT"]
[Termination "luizzy won on time"]

1. d4 {[%clk 0:03:01.9]} 1... Nf6 {[%clk 0:02:59.2]} 2. c4 {[%clk 0:03:03]} 2...
g6 {[%clk 0:03:00.3]} 3. Nc3 {[%clk 0:03:04.5]} 3... Bg7 {[%clk 0:03:01.4]} 4.
e4 {[%clk 0:03:06.1]} 4... d6 {[%clk 0:03:02.9]} 5. Be2 {[%clk 0:03:07.8]} 5...
O-O {[%clk 0:03:03.5]} 6. Bg5 {[%clk 0:03:09]} 6... Na6 {[%clk 0:03:03.6]} 7. f4
{[%clk 0:03:09.2]} 7... c6 {[%clk 0:03:01.8]} 8. Nf3 {[%clk 0:03:04.8]} 8... Nc7
{[%clk 0:03:02.2]} 9. Bh4 {[%clk 0:03:05.2]} 9... d5 {[%clk 0:02:56.8]} 10. cxd5
{[%clk 0:02:57.4]} 10... cxd5 {[%clk 0:02:58.7]} 11. e5 {[%clk 0:02:58.5]} 11...
Ne4 {[%clk 0:02:58.2]} 12. O-O {[%clk 0:02:56.3]} 12... Bf5 {[%clk 0:02:52]} 13.
h3 {[%clk 0:02:54.8]} 13... Rc8 {[%clk 0:02:48.1]} 14. Rc1 {[%clk 0:02:46.1]}
14... Ne6 {[%clk 0:02:38.3]} 15. g4 {[%clk 0:02:09.9]} 15... Nxc3 {[%clk
0:02:31.8]} 16. bxc3 {[%clk 0:02:11]} 16... Be4 {[%clk 0:02:32.4]} 17. Nd2
{[%clk 0:02:11.3]} 17... f5 {[%clk 0:01:56.6]} 18. Nxe4 {[%clk 0:02:09.4]} 18...
fxe4 {[%clk 0:01:39.5]} 19. f5 {[%clk 0:02:10.3]} 19... g5 {[%clk 0:01:31.8]}
20. Bg3 {[%clk 0:01:57.1]} 20... Nf4 {[%clk 0:01:24.6]} 21. Bxf4 {[%clk
0:01:26.7]} 21... gxf4 {[%clk 0:01:23.6]} 22. h4 {[%clk 0:01:07.3]} 22... f3
{[%clk 0:01:22.2]} 23. Bxf3 {[%clk 0:01:08.3]} 23... exf3 {[%clk 0:01:23.1]} 24.
Qxf3 {[%clk 0:01:10.2]} 24... Kh8 {[%clk 0:00:58.1]} 25. g5 {[%clk 0:01:07.9]}
25... Rg8 {[%clk 0:00:25.4]} 26. Kh1 {[%clk 0:01:04.3]} 26... Rc6 {[%clk
0:00:21.1]} 27. f6 {[%clk 0:01:02.8]} 27... exf6 {[%clk 0:00:19.5]} 28. exf6
{[%clk 0:01:04.7]} 28... Bf8 {[%clk 0:00:20.2]} 29. Rce1 {[%clk 0:01:00.8]}
29... Qd7 {[%clk 0:00:18.9]} 30. Re5 {[%clk 0:00:58.1]} 30... Qf7 {[%clk
0:00:16.6]} 31. Qxd5 {[%clk 0:00:47.8]} 31... Qh5 {[%clk 0:00:12.9]} 32. Re4
{[%clk 0:00:30.2]} 32... Rxc3 {[%clk 0:00:13.4]} 33. f7 {[%clk 0:00:30.9]} 33...
Rh3+ {[%clk 0:00:10.2]} 34. Kg2 {[%clk 0:00:30.9]} 34... Rxg5+ {[%clk
0:00:03.2]} 35. Qxg5 {[%clk 0:00:27.8]} 1-0

[Event "*** Titled Tuesday Blitz"]
[Site "Chess.com"]
[Date "2018.10.02"]
[Round "10"]
[White "tteshan"]
[Black "HouseOfDurin"]
[Result "0-1"]
[WhiteElo "2001"]
[BlackElo "1810"]
[TimeControl "180+2"]
[EndTime "15:12:44 PDT"]
[Termination "HouseOfDurin won by checkmate"]

1. e4 {[%clk 0:03:01.9]} 1... c5 {[%clk 0:03:01]} 2. c3 {[%clk 0:03:02.1]} 2...
d5 {[%clk 0:03:01.5]} 3. exd5 {[%clk 0:03:02.5]} 3... Qxd5 {[%clk 0:03:03.4]} 4.
d4 {[%clk 0:03:03.7]} 4... cxd4 {[%clk 0:03:03.3]} 5. cxd4 {[%clk 0:03:05]} 5...
Nc6 {[%clk 0:03:04.1]} 6. Nf3 {[%clk 0:03:04.8]} 6... Bg4 {[%clk 0:03:02.8]} 7.
Be2 {[%clk 0:03:05.5]} 7... e6 {[%clk 0:03:03.5]} 8. Nc3 {[%clk 0:03:06]} 8...
Qa5 {[%clk 0:03:04.4]} 9. O-O {[%clk 0:03:06.6]} 9... Nf6 {[%clk 0:03:05.7]} 10.
Be3 {[%clk 0:03:06.5]} 10... Be7 {[%clk 0:03:05]} 11. h3 {[%clk 0:03:05.6]}
11... Bh5 {[%clk 0:03:05.3]} 12. Rc1 {[%clk 0:03:00.2]} 12... O-O {[%clk
0:03:05]} 13. Nd2 {[%clk 0:02:55.1]} 13... Bxe2 {[%clk 0:03:03.6]} 14. Qxe2
{[%clk 0:02:56.5]} 14... Nd5 {[%clk 0:02:55.8]} 15. Nxd5 {[%clk 0:02:55.1]}
15... Qxd5 {[%clk 0:02:57.7]} 16. b3 {[%clk 0:02:48]} 16... Rfd8 {[%clk
0:02:51.9]} 17. Rfd1 {[%clk 0:02:48]} 17... Rd7 {[%clk 0:02:13.9]} 18. Nf3
{[%clk 0:02:32.4]} 18... Rad8 {[%clk 0:02:13.7]} 19. Qc4 {[%clk 0:02:27.4]}
19... Bf6 {[%clk 0:02:07.1]} 20. Qc2 {[%clk 0:02:12.6]} 20... g6 {[%clk
0:02:01.2]} 21. Kh1 {[%clk 0:01:59.1]} 21... Qa5 {[%clk 0:01:41.5]} 22. Qe2
{[%clk 0:01:50.8]} 22... Nxd4 {[%clk 0:01:30.4]} 23. Bxd4 {[%clk 0:01:37.6]}
23... Bxd4 {[%clk 0:01:32.3]} 24. Rc4 {[%clk 0:01:33.8]} 24... Bf6 {[%clk
0:01:16.5]} 25. Rdc1 {[%clk 0:01:29.9]} 25... Kg7 {[%clk 0:01:08.3]} 26. b4
{[%clk 0:01:26.8]} 26... Qd5 {[%clk 0:00:56.7]} 27. Qc2 {[%clk 0:01:20.8]} 27...
Qd3 {[%clk 0:00:52]} 28. Qa4 {[%clk 0:01:19.9]} 28... a6 {[%clk 0:00:47.8]} 29.
b5 {[%clk 0:01:18.4]} 29... Qe2 {[%clk 0:00:27.1]} 30. bxa6 {[%clk 0:01:14.9]}
30... bxa6 {[%clk 0:00:23.3]} 31. Qxa6 {[%clk 0:01:07.3]} 31... Rd1+ {[%clk
0:00:20.5]} 32. Rxd1 {[%clk 0:01:08.1]} 32... Rxd1+ {[%clk 0:00:22.1]} 33. Kh2
{[%clk 0:01:08.9]} 33... Qxf2 {[%clk 0:00:21.9]} 34. Qc6 {[%clk 0:00:56.4]}
34... Qxa2 {[%clk 0:00:17.7]} 35. Rc2 {[%clk 0:00:55.1]} 35... Qd5 {[%clk
0:00:17.8]} 36. Qb6 {[%clk 0:00:42.8]} 36... Be5+ {[%clk 0:00:17.3]} 37. Nxe5
{[%clk 0:00:42.8]} 37... Qxe5+ {[%clk 0:00:18.4]} 38. g3 {[%clk 0:00:44.1]}
38... Qe1 {[%clk 0:00:15.9]} 39. Qb2+ {[%clk 0:00:40.8]} 39... Kh6 {[%clk
0:00:12.3]} 40. Kg2 {[%clk 0:00:23.9]} 40... Qf1+ {[%clk 0:00:13.1]} 41. Kh2
{[%clk 0:00:24.8]} 41... Qh1# {[%clk 0:00:14.7]} 0-1

[Event "*** Titled Tuesday Blitz"]
[Site "Chess.com"]
[Date "2018.10.02"]
[Round "10"]
[White "Quiet_Desperation"]
[Black "Kirill_Klukin"]
[Result "0-1"]
[WhiteElo "1952"]
[BlackElo "2597"]
[TimeControl "180+2"]
[EndTime "15:12:45 PDT"]
[Termination "Kirill_Klukin won by resignation"]

1. e4 {[%clk 0:03:01.9]} 1... c5 {[%clk 0:02:58.4]} 2. d4 {[%clk 0:03:03]} 2...
cxd4 {[%clk 0:02:58.9]} 3. c3 {[%clk 0:03:04.4]} 3... Nf6 {[%clk 0:02:58.7]} 4.
e5 {[%clk 0:03:05.4]} 4... Nd5 {[%clk 0:02:59.3]} 5. Nf3 {[%clk 0:03:06.9]} 5...
Nc6 {[%clk 0:02:57.2]} 6. Bc4 {[%clk 0:03:08]} 6... e6 {[%clk 0:02:58]} 7. O-O
{[%clk 0:03:04.3]} 7... d6 {[%clk 0:02:59]} 8. cxd4 {[%clk 0:03:03.7]} 8... Be7
{[%clk 0:02:59.9]} 9. Qe2 {[%clk 0:03:04.7]} 9... O-O {[%clk 0:03:00.1]} 10. Nc3
{[%clk 0:03:04.5]} 10... Nxc3 {[%clk 0:03:00.1]} 11. bxc3 {[%clk 0:03:05.4]}
11... dxe5 {[%clk 0:03:01.8]} 12. dxe5 {[%clk 0:03:06.7]} 12... Qc7 {[%clk
0:03:03.3]} 13. Bd3 {[%clk 0:03:03.7]} 13... Rd8 {[%clk 0:03:04.8]} 14. Bf4
{[%clk 0:03:00.5]} 14... b6 {[%clk 0:03:04.2]} 15. Qe4 {[%clk 0:02:48.9]} 15...
g6 {[%clk 0:03:04.6]} 16. Rad1 {[%clk 0:02:37.6]} 16... Bb7 {[%clk 0:03:04.9]}
17. Qe3 {[%clk 0:02:38.9]} 17... Rd5 {[%clk 0:02:59.9]} 18. Be4 {[%clk
0:02:00.8]} 18... Bc5 {[%clk 0:02:59.7]} 19. Qc1 {[%clk 0:01:51.4]} 19... Rxd1
{[%clk 0:02:58]} 20. Rxd1 {[%clk 0:01:53.3]} 20... Rd8 {[%clk 0:02:58.1]} 21. h4
{[%clk 0:01:51.5]} 21... Rxd1+ {[%clk 0:02:39.9]} 22. Qxd1 {[%clk 0:01:50.8]}
22... Qd8 {[%clk 0:02:40.3]} 23. Qc1 {[%clk 0:01:33.9]} 23... Na5 {[%clk
0:02:34]} 24. Bxb7 {[%clk 0:01:33.5]} 24... Nxb7 {[%clk 0:02:35.9]} 25. Ng5
{[%clk 0:01:33.8]} 25... Qd3 {[%clk 0:02:31.6]} 26. Qe1 {[%clk 0:01:26.5]} 26...
Qf5 {[%clk 0:02:01.3]} 27. Qd2 {[%clk 0:01:21.8]} 27... Be7 {[%clk 0:01:53]} 28.
Qd7 {[%clk 0:01:02.4]} 28... Qxf4 {[%clk 0:01:11.2]} 29. Qxe7 {[%clk 0:01:02.2]}
29... Nc5 {[%clk 0:01:05.1]} 30. g3 {[%clk 0:00:41.6]} 30... Qf5 {[%clk
0:01:00]} 31. f3 {[%clk 0:00:29.3]} 31... h6 {[%clk 0:00:58.2]} 32. Ne4 {[%clk
0:00:20.7]} 32... Nxe4 {[%clk 0:00:58.9]} 33. fxe4 {[%clk 0:00:21.7]} 33... Qxe5
{[%clk 0:00:57.1]} 34. Qxa7 {[%clk 0:00:22.3]} 34... Qxg3+ {[%clk 0:00:58.2]}
35. Kf1 {[%clk 0:00:22.4]} 35... Qf3+ {[%clk 0:00:59.5]} 36. Kg1 {[%clk
0:00:23.6]} 36... Qd1+ {[%clk 0:00:59.6]} 37. Kf2 {[%clk 0:00:24]} 37... Qc2+
{[%clk 0:01:00.3]} 38. Kf3 {[%clk 0:00:24.9]} 38... Qxc3+ {[%clk 0:01:01.2]} 39.
Kf4 {[%clk 0:00:26.5]} 39... Qf6+ {[%clk 0:01:02.1]} 40. Ke3 {[%clk 0:00:27.8]}
40... Qc3+ {[%clk 0:01:02.9]} 41. Kf4 {[%clk 0:00:29.1]} 41... e5+ {[%clk
0:01:04.3]} 42. Kg4 {[%clk 0:00:29.4]} 42... h5+ {[%clk 0:00:44.7]} 43. Kg5
{[%clk 0:00:28.4]} 43... Qg3+ {[%clk 0:00:45.9]} 44. Kf6 {[%clk 0:00:29.7]}
44... Qf4+ {[%clk 0:00:47]} 45. Ke7 {[%clk 0:00:28]} 45... Qxh4+ {[%clk
0:00:47.8]} 46. Kd6 {[%clk 0:00:29.9]} 46... Qf6+ {[%clk 0:00:48.5]} 47. Kd5
{[%clk 0:00:30.8]} 47... h4 {[%clk 0:00:49.9]} 48. Qb8+ {[%clk 0:00:29]} 48...
Kg7 {[%clk 0:00:50.6]} 49. Qxe5 {[%clk 0:00:27.9]} 0-1

[Event "*** Titled Tuesday Blitz"]
[Site "Chess.com"]
[Date "2018.10.02"]
[Round "10"]
[White "grzechu96"]
[Black "DanielNaroditsky"]
[Result "0-1"]
[WhiteElo "2584"]
[BlackElo "2960"]
[TimeControl "180+2"]
[EndTime "15:12:53 PDT"]
[Termination "DanielNaroditsky won on time"]

1. e4 {[%clk 0:03:01.9]} 1... g6 {[%clk 0:03:00.9]} 2. d4 {[%clk 0:03:02.3]}
2... Bg7 {[%clk 0:03:02.8]} 3. Nf3 {[%clk 0:03:03.5]} 3... d6 {[%clk 0:03:01.4]}
4. Bc4 {[%clk 0:03:04.1]} 4... e6 {[%clk 0:03:02.1]} 5. Qe2 {[%clk 0:03:04.5]}
5... Ne7 {[%clk 0:03:03.8]} 6. c3 {[%clk 0:03:03.2]} 6... Nbc6 {[%clk
0:03:02.7]} 7. O-O {[%clk 0:03:03.3]} 7... h6 {[%clk 0:03:03.3]} 8. Nbd2 {[%clk
0:02:53.9]} 8... g5 {[%clk 0:03:04.5]} 9. b4 {[%clk 0:02:49.6]} 9... Ng6 {[%clk
0:03:05.4]} 10. g3 {[%clk 0:02:40.2]} 10... g4 {[%clk 0:03:04.6]} 11. Ne1 {[%clk
0:02:41.5]} 11... h5 {[%clk 0:03:06.5]} 12. Ng2 {[%clk 0:02:18.8]} 12... e5
{[%clk 0:03:04.5]} 13. b5 {[%clk 0:02:09.3]} 13... Nce7 {[%clk 0:03:01.3]} 14.
f3 {[%clk 0:01:56.8]} 14... exd4 {[%clk 0:02:59]} 15. fxg4 {[%clk 0:01:58]}
15... Bxg4 {[%clk 0:02:55.4]} 16. Bxf7+ {[%clk 0:01:58.6]} 16... Kd7 {[%clk
0:02:56.7]} 17. Nf3 {[%clk 0:01:06.7]} 17... dxc3 {[%clk 0:02:52.2]} 18. h3
{[%clk 0:00:57.3]} 18... Bxh3 {[%clk 0:02:44.2]} 19. Ng5 {[%clk 0:00:58.7]}
19... Bd4+ {[%clk 0:02:16.8]} 20. Kh2 {[%clk 0:00:27.9]} 20... Bg4 {[%clk
0:02:17.1]} 21. Qc4 {[%clk 0:00:27.2]} 21... c5 {[%clk 0:01:58.8]} 22. bxc6+
{[%clk 0:00:20.4]} 22... Nxc6 {[%clk 0:01:59.4]} 23. Bxg6 {[%clk 0:00:19.4]}
23... Rf8 {[%clk 0:01:48.4]} 24. Rf7+ {[%clk 0:00:14]} 24... Rxf7 {[%clk
0:01:46.3]} 25. Qxf7+ {[%clk 0:00:14.6]} 25... Ne7 {[%clk 0:01:44.2]} 26. Bf4
{[%clk 0:00:14.2]} 26... Qg8 {[%clk 0:01:36.9]} 27. Qxg8 {[%clk 0:00:11.7]}
27... Rxg8 {[%clk 0:01:37.3]} 28. Bf7 {[%clk 0:00:13]} 28... Rc8 {[%clk
0:01:37.2]} 29. Rc1 {[%clk 0:00:13.7]} 29... Nc6 {[%clk 0:01:03.3]} 30. Ne3
{[%clk 0:00:14.9]} 30... Bxe3 {[%clk 0:01:01.1]} 31. Bxe3 {[%clk 0:00:16.8]}
31... Ne5 {[%clk 0:01:02.4]} 32. Bd4 {[%clk 0:00:16]} 32... Nxf7 {[%clk
0:00:56.5]} 33. Nxf7 {[%clk 0:00:17.9]} 33... c2 {[%clk 0:00:55.8]} 34. Ng5
{[%clk 0:00:16]} 34... Rc4 {[%clk 0:00:53.5]} 35. Be3 {[%clk 0:00:16.8]} 35...
b5 {[%clk 0:00:48.8]} 36. Bxa7 {[%clk 0:00:17.4]} 36... Ra4 {[%clk 0:00:48.9]}
37. Rxc2 {[%clk 0:00:05.9]} 37... Rxa7 {[%clk 0:00:49.6]} 38. Rd2 {[%clk
0:00:06.9]} 38... Kc6 {[%clk 0:00:45.2]} 39. Nh3 {[%clk 0:00:07.1]} 39... Be6
{[%clk 0:00:39.2]} 40. Rc2+ {[%clk 0:00:06.2]} 40... Bc4 {[%clk 0:00:39.9]} 41.
Nf4 {[%clk 0:00:06.8]} 41... Rxa2 {[%clk 0:00:39.2]} 42. Rxa2 {[%clk 0:00:07.6]}
42... Bxa2 {[%clk 0:00:41.1]} 43. Nxh5 {[%clk 0:00:07.7]} 43... b4 {[%clk
0:00:42.6]} 44. Nf4 {[%clk 0:00:09]} 44... Bc4 {[%clk 0:00:43.7]} 0-1

[Event "*** Titled Tuesday Blitz"]
[Site "Chess.com"]
[Date "2018.10.02"]
[Round "10"]
[White "Kawhi_Leonard2"]
[Black "vovachesss"]
[Result "0-1"]
[WhiteElo "2276"]
[BlackElo "2476"]
[TimeControl "180+2"]
[EndTime "15:12:59 PDT"]
[Termination "vovachesss won by resignation"]

1. e4 {[%clk 0:03:01.9]} 1... e5 {[%clk 0:03:00.5]} 2. Nf3 {[%clk 0:03:00.6]}
2... d6 {[%clk 0:03:01.4]} 3. d4 {[%clk 0:03:00.3]} 3... exd4 {[%clk 0:03:02.1]}
4. Nxd4 {[%clk 0:02:59.2]} 4... Nf6 {[%clk 0:03:02.8]} 5. Nc3 {[%clk 0:03:00.2]}
5... Nc6 {[%clk 0:03:03.7]} 6. Bf4 {[%clk 0:02:59.1]} 6... Be7 {[%clk
0:02:58.4]} 7. Qd2 {[%clk 0:03:00.3]} 7... O-O {[%clk 0:02:59]} 8. O-O-O {[%clk
0:03:01.3]} 8... Nd7 {[%clk 0:02:56.2]} 9. h4 {[%clk 0:02:46.7]} 9... Nxd4
{[%clk 0:02:37.5]} 10. Qxd4 {[%clk 0:02:47.1]} 10... Bf6 {[%clk 0:02:38]} 11.
Qd2 {[%clk 0:02:47.9]} 11... a6 {[%clk 0:02:29.1]} 12. g4 {[%clk 0:02:42.5]}
12... b5 {[%clk 0:02:28.4]} 13. g5 {[%clk 0:02:41.7]} 13... Bxc3 {[%clk
0:02:29]} 14. Qxc3 {[%clk 0:02:41.6]} 14... Bb7 {[%clk 0:02:28.9]} 15. Bd3
{[%clk 0:02:32]} 15... Qe7 {[%clk 0:02:26.6]} 16. h5 {[%clk 0:02:22.7]} 16...
Ne5 {[%clk 0:02:14.5]} 17. h6 {[%clk 0:02:12.5]} 17... g6 {[%clk 0:02:15.7]} 18.
Kb1 {[%clk 0:02:11.2]} 18... c5 {[%clk 0:02:08.7]} 19. a3 {[%clk 0:02:01.8]}
19... f6 {[%clk 0:01:54.4]} 20. gxf6 {[%clk 0:02:00.9]} 20... Qxf6 {[%clk
0:01:56.3]} 21. Be3 {[%clk 0:02:01.4]} 21... c4 {[%clk 0:01:55.3]} 22. Be2
{[%clk 0:01:03.2]} 22... Bxe4 {[%clk 0:01:56.2]} 23. f4 {[%clk 0:00:53.7]} 23...
Nc6 {[%clk 0:01:16.3]} 24. Qxf6 {[%clk 0:00:41.2]} 24... Rxf6 {[%clk 0:01:18.2]}
25. Rhg1 {[%clk 0:00:42.2]} 25... Re8 {[%clk 0:01:18.1]} 26. Rg3 {[%clk
0:00:39.4]} 26... d5 {[%clk 0:01:16.7]} 27. Kc1 {[%clk 0:00:32.4]} 27... a5
{[%clk 0:00:50.8]} 28. Bg4 {[%clk 0:00:33]} 28... b4 {[%clk 0:00:50.7]} 29. Bd7
{[%clk 0:00:21.4]} 29... Rb8 {[%clk 0:00:44.2]} 30. Bxc6 {[%clk 0:00:20.4]}
30... Rxc6 {[%clk 0:00:46.1]} 31. axb4 {[%clk 0:00:21.4]} 31... axb4 {[%clk
0:00:44.7]} 32. f5 {[%clk 0:00:21.7]} 32... c3 {[%clk 0:00:45.1]} 33. fxg6
{[%clk 0:00:21]} 33... hxg6 {[%clk 0:00:40.1]} 34. Bd4 {[%clk 0:00:17.3]} 34...
Ra8 {[%clk 0:00:38.5]} 35. bxc3 {[%clk 0:00:16.8]} 35... bxc3 {[%clk 0:00:34.9]}
36. Rxc3 {[%clk 0:00:17.8]} 36... Rxc3 {[%clk 0:00:21.3]} 37. Bxc3 {[%clk
0:00:18.4]} 37... Ra2 {[%clk 0:00:21.7]} 38. Rd2 {[%clk 0:00:19.6]} 38... Kh7
{[%clk 0:00:22.1]} 39. Rh2 {[%clk 0:00:19.3]} 39... g5 {[%clk 0:00:21.6]} 40.
Bg7 {[%clk 0:00:20.1]} 40... g4 {[%clk 0:00:22.5]} 41. Rh4 {[%clk 0:00:21]}
41... g3 {[%clk 0:00:23.1]} 42. Rg4 {[%clk 0:00:21.8]} 42... Rxc2+ {[%clk
0:00:24.1]} 43. Kd1 {[%clk 0:00:22.7]} 43... g2 {[%clk 0:00:22.6]} 44. Bd4
{[%clk 0:00:22.6]} 44... Rc4 {[%clk 0:00:19.4]} 45. Be3 {[%clk 0:00:20.1]} 45...
Bf3+ {[%clk 0:00:20.5]} 0-1